fUST/lending_fUST_20250730
["ID","MTS","AMOUNT","RATE_DAILY","PERIOD"]
[376194034,1753888252410,-171.461774,0.0002465,7]
[376194035,1753888252420,-171.46177,0.0002465,7]
[376194036,1753888252430,-175.0,0.0002465,6]
[376194037,1753888252439,-253.950975,0.0002465,7]
[376194039,1753888252449,-253.950966,0.0002465,7]
[376194040,1753888252458,-151.0,0.0002465,2]
[376194042,1753888252468,-151.0,0.0002465,2]
[376194044,1753888252478,-1048.02,0.00024656,2]
[376194046,1753888252489,-662.05,0.00024656,2]
[376194049,1753888252500,-679.29,0.00024656,2]
[376194050,1753888252510,-474.32,0.00024657,4]
[376194053,1753888252520,-474.32,0.00024657,4]
[376194055,1753888252530,-474.32,0.00024657,4]
[376194056,1753888252540,-474.32,0.00024657,4]
[376194058,1753888252550,-474.32,0.00024657,4]
[376194060,1753888252559,-474.32,0.00024657,4]
[376194063,1753888252569,-474.32,0.00024657,4]
[376194065,1753888252579,-474.32,0.00024657,4]
[376194067,1753888252588,-474.32,0.00024657,4]
[376194069,1753888252601,-474.32,0.00024657,4]
[376194071,1753888252611,-474.32,0.00024657,4]
[376194073,1753888252620,-474.32,0.00024657,4]
[376194075,1753888252630,-474.32,0.00024657,4]
[376194077,1753888252640,-474.32,0.00024657,4]
[376194079,1753888252649,-474.32,0.00024657,4]
[376194081,1753888252659,-474.32,0.00024657,4]
[376194083,1753888252669,-460.0,0.00024657,2]
[376194085,1753888252679,-460.0,0.00024657,2]
[376194087,1753888252689,-460.0,0.00024657,2]
[376194089,1753888252699,-460.0,0.00024657,2]
[376194091,1753888252708,-460.04665237,0.00024657,2]
[376194093,1753888252717,-151.0,0.00024658,7]
[376194095,1753888252727,-380.0,0.00024658,2]
[376194097,1753888252737,-200.0,0.00024658,2]
[376194099,1753888252748,-432.0,0.00024658,2]
[376194101,1753888252757,-150.0,0.00024673,2]
[376194103,1753888252767,-2500.0,0.00024687,2]
[376194105,1753888252776,-600.0,0.0002469,2]
[376194107,1753888252785,-2347.7,0.00024692,7]
[376194109,1753888252795,-151.0,0.000247,7]
[376194111,1753888252805,-179.86083,0.000247,7]
[376194113,1753888252815,-151.0,0.000247,7]
[376194115,1753888252825,-151.0,0.000247,7]
[376194117,1753888252835,-151.0,0.000247,7]
[376194119,1753888252844,-151.0,0.000247,7]
[376194121,1753888252854,-151.0,0.000247,7]
[376194123,1753888252863,-151.0,0.000247,7]
[376194126,1753888252875,-452.868494,0.000247,7]
[376194127,1753888252885,-452.868494,0.000247,7]
[376194130,1753888252895,-151.0,0.000247,7]
[376194131,1753888252904,-600.0,0.000247,2]
[376194133,1753888252914,-3000.0,0.00024702,2]
[376194135,1753888252923,-151.0,0.00024703,7]
[376194137,1753888252933,-251.824476,0.00024703,7]
[376194139,1753888252942,-1073.99,0.00024709,2]
[376194141,1753888252952,-628.37,0.00024709,2]
[376194143,1753888252962,-460.0,0.00024709,2]
[376194145,1753888252973,-460.0,0.0002471,2]
[376194147,1753888252983,-1112.31,0.0002471,2]
[376194149,1753888252993,-933.64,0.0002471,2]
[376194151,1753888253003,-1000.0,0.00024715,2]
[376194153,1753888253013,-500.39495767,0.0002472,2]
[376194155,1753888253023,-1000.0,0.00024722,2]
[376194157,1753888253032,-1200.0,0.00024734,2]
[376194159,1753888253042,-500.0,0.00024735,2]
[376194161,1753888253052,-500.0,0.00024736,2]
[376194163,1753888253061,-151.0,0.00024744,7]
[376194166,1753888253071,-151.0,0.00024744,7]
[376194168,1753888253081,-151.0,0.00024744,7]
[376194170,1753888253090,-151.0,0.0002475,2]
[376194172,1753888253100,-151.0,0.0002475,2]
[376194174,1753888253109,-1200.0,0.00024752,2]
[376194176,1753888253119,-3991.22055629,0.00024761,2]
[376194178,1753888253128,-381.0,0.00024763,2]
[376194180,1753888253138,-151.0,0.00024768,7]
[376194182,1753888253148,-16467.73324839,0.00024774,2]
[376194184,1753888253157,-151.0,0.00024774,7]
[376194186,1753888253167,-151.0,0.00024774,7]
[376194188,1753888253176,-452.868494,0.00024774,7]
[376194190,1753888253186,-452.868494,0.00024774,7]
[376194192,1753888253196,-151.0,0.00024774,7]
[376194194,1753888253206,-474.32,0.0002478,4]
[376194196,1753888253215,-3228.5,0.0002478,2]
[376194198,1753888253225,-460.0,0.0002478,2]
[376194200,1753888253235,-2347.7,0.00024792,7]
[376194202,1753888253246,-153.0,0.00024795,2]
[376194204,1753888253256,-3818.01072071,0.000248,2]
[376194206,1753888253266,-151.0,0.000248,7]
[376194208,1753888253278,-151.0,0.000248,7]
[376194210,1753888253288,-241.177636,0.000248,7]
[376194212,1753888253298,-151.0,0.000248,7]
[376194214,1753888253308,-151.0,0.000248,7]
[376194216,1753888253318,-151.0,0.000248,7]
[376194218,1753888253329,-151.0,0.000248,7]
[376194220,1753888253339,-151.0,0.000248,7]
[376194222,1753888253349,-151.0,0.000248,7]
[376194224,1753888253360,-152.576947,0.000248,7]
[376194226,1753888253371,-151.0,0.000248,7]
[376194228,1753888253380,-252.326884,0.000248,7]
[376194230,1753888253390,-151.0,0.000248,7]
[376194232,1753888253399,-151.0,0.000248,7]
[376194234,1753888253408,-151.0,0.000248,7]
[376194236,1753888253418,-151.0,0.000248,7]
[376194238,1753888253427,-199.866233,0.000248,7]
[376194240,1753888253439,-199.866233,0.000248,7]
[376194242,1753888253448,-151.0,0.000248,7]
[376194244,1753888253458,-151.0,0.000248,7]
[376194246,1753888253467,-224.796264,0.000248,7]
[376194248,1753888253477,-452.868494,0.000248,7]
[376194250,1753888253486,-452.868494,0.000248,7]
[376194252,1753888253497,-452.868494,0.000248,7]
[376194254,1753888253507,-452.868494,0.000248,7]
[376194256,1753888253516,-151.0,0.000248,7]
[376194258,1753888253526,-57922.97683523,0.000248,2]
[376194275,1753888253676,-276.73597561,0.000248,2]
[376194319,1753888254080,-169.31220569,0.00019678,2]
[376194321,1753888254091,-155.39164791,0.00020052,2]
[376194324,1753888254102,-429.43835209,0.00020052,2]
[376194326,1753888254111,-584.83,0.00020326,2]
[376194328,1753888254120,-151.0,0.00020327,2]
[376194330,1753888254129,-151.0,0.00020396,2]
[376194332,1753888254139,-537.43164575,0.000206,2]
[376194334,1753888254150,-47.39835425,0.000206,2]
[376194336,1753888254160,-151.0,0.00020601,2]
[376194338,1753888254169,-151.0,0.0002082,2]
[376194340,1753888254178,-584.83,0.00020874,2]
[376194342,1753888254188,-584.83,0.00021148,2]
[376194344,1753888254197,-460.0,0.00021765,2]
[376194346,1753888254207,-464.41,0.00022,2]
[376194348,1753888254216,-151.0,0.00022317,2]
[376194350,1753888254226,-24.99394059,0.00022317,2]
[376194353,1753888254252,-151.0,0.00021094,2]
[376194355,1753888254262,-584.83,0.00021422,2]
[376194357,1753888254273,-126.00605941,0.00022317,2]
[376194360,1753888254287,-151.0,0.00022317,2]
[376194362,1753888254297,-151.0,0.00022317,2]
[376194364,1753888254307,-151.0,0.00022317,2]
[376194366,1753888254320,-151.0,0.00022317,2]
[376194368,1753888254329,-151.0,0.00022317,2]
[376194370,1753888254338,-6084.73024821,0.00022438,2]
[376194372,1753888254348,-464.41,0.00022569,2]
[376194374,1753888254358,-464.41,0.00023138,2]
[376194376,1753888254367,-464.41,0.00023707,2]
[376194378,1753888254376,-464.41,0.00024276,2]
[376194380,1753888254385,-200.0,0.00024316,15]
[376194382,1753888254394,-200.0,0.00024316,15]
[376194384,1753888254404,-200.0,0.00024316,15]
[376194386,1753888254413,-200.0,0.00024316,15]
[376194388,1753888254422,-200.0,0.00024316,15]
[376194389,1753888254432,-200.0,0.00024316,15]
[376194391,1753888254441,-316.0,0.00024316,15]
[376194394,1753888254451,-20830.26938256,0.000248,2]
[376194395,1753888254460,-1200.0,0.00024801,2]
[376194398,1753888254471,-202.18548594,0.00024813,11]
[376194400,1753888254480,-1000.0,0.00024818,2]
[376194402,1753888254490,-706.15,0.00024842,2]
[376194403,1753888254499,-685.45,0.00024843,2]
[376194405,1753888254509,-464.41,0.00024845,2]
[376194407,1753888254518,-1318.08363552,0.00024848,19]
[376194409,1753888254527,-153.0,0.00024849,2]
[376194411,1753888254537,-153.0,0.00024849,2]
[376194413,1753888254548,-153.0,0.00024849,2]
[376194415,1753888254557,-151.0,0.0002485,2]
[376194417,1753888254567,-151.0,0.0002485,2]
[376194419,1753888254576,-600.0,0.00024866,2]
[376194421,1753888254585,-1000.0,0.00024885,2]
[376194423,1753888254595,-2347.7,0.00024892,7]
[376194425,1753888254604,-151.0,0.000249,7]
[376194427,1753888254613,-151.0,0.000249,7]
[376194429,1753888254622,-151.0,0.000249,7]
[376194431,1753888254632,-151.0,0.000249,7]
[376194433,1753888254642,-151.0,0.000249,7]
[376194435,1753888254651,-151.0,0.000249,7]
[376194437,1753888254661,-151.0,0.000249,7]
[376194439,1753888254671,-151.0,0.000249,7]
[376194441,1753888254682,-151.0,0.000249,7]
[376194443,1753888254691,-151.0,0.000249,7]
[376194445,1753888254701,-231.789757,0.000249,7]
[376194447,1753888254710,-197.878272,0.000249,7]
[376194449,1753888254720,-199.866233,0.000249,7]
[376194451,1753888254729,-151.0,0.000249,7]
[376194453,1753888254738,-452.868494,0.000249,7]
[376194455,1753888254749,-452.868494,0.000249,7]
[376194457,1753888254758,-23865.16757141,0.000249,2]
[376194462,1753888254791,-169.31220568,0.00021033,2]
[376194464,1753888254800,-151.0,0.0002465,2]
[376194466,1753888254810,-6084.73024821,0.00024804,2]
[376194468,1753888254819,-40813.38689428,0.000249,2]
[376194470,1753888254831,-559357.04870431,0.000249,2]
[376194472,1753888254841,-153.0,0.00024904,2]
[376194474,1753888254851,-153.0,0.00024904,2]
[376194475,1753888254860,-153.0,0.00024904,2]
[376194476,1753888254870,-153.0,0.00024904,2]
[376194477,1753888254879,-153.0,0.00024904,2]
[376194478,1753888254889,-381.0,0.00024908,2]
[376194479,1753888254899,-1200.0,0.00024922,2]
[376194480,1753888254908,-500.0,0.00024924,2]
[376194482,1753888254918,-290.0,0.0002493,12]
[376194484,1753888254927,-1048.02,0.0002493,2]
[376194487,1753888254937,-662.05,0.0002493,2]
[376194489,1753888254947,-679.29,0.0002493,2]
[376194490,1753888254956,-432.0,0.00024932,2]
[376194492,1753888254966,-3108.75397531,0.0002495,2]
[376194495,1753888254975,-151.0,0.0002495,2]
[376194497,1753888254985,-151.0,0.0002495,2]
[376194498,1753888254995,-154.317516,0.00024965,15]
[376194500,1753888255004,-2146.0,0.00024972,2]
[376194502,1753888255014,-970.0,0.00024972,2]
[376194504,1753888255023,-635.0,0.00024972,2]
[376194506,1753888255033,-150.0,0.00024973,2]
[376194508,1753888255043,-3991.22055629,0.00024973,2]
[376194511,1753888255052,-1200.0,0.00024977,2]
[376194512,1753888255062,-500.0,0.00024983,2]
[376194514,1753888255071,-1073.99,0.00024983,2]
[376194517,1753888255081,-628.37,0.00024983,2]
[376194519,1753888255090,-460.0,0.00024983,2]
[376194521,1753888255100,-460.0,0.00024984,2]
[376194523,1753888255110,-1112.31,0.00024984,2]
[376194525,1753888255119,-933.64,0.00024984,2]
[376194526,1753888255128,-2347.7,0.00024992,7]
[376194529,1753888255138,-600.0,0.00024998,2]
[376194531,1753888255147,-200.00177083,0.00025,10]
[376194533,1753888255156,-3011.38074589,0.00025,14]
[376194559,1753888255482,-460.0,0.00019778,2]
[376194560,1753888255494,-460.0,0.00020052,2]
[376194561,1753888255503,-460.0,0.00020395,2]
[376194562,1753888255512,-460.0,0.00020669,2]
[376194563,1753888255522,-355.2,0.00020943,2]
[376194564,1753888255531,-245.636436,0.00021642,2]
[376194565,1753888255540,-584.83,0.00021696,2]
[376194566,1753888255550,-584.83,0.0002197,2]
[376194567,1753888255559,-584.83,0.00022244,2]
[376194568,1753888255569,-169.31220568,0.00022388,2]
[376194569,1753888255579,-584.83,0.00022518,2]
[376194570,1753888255588,-584.83,0.00022792,2]
[376194571,1753888255598,-584.83,0.00023066,2]
[376194572,1753888255608,-584.83,0.0002334,2]
[376194573,1753888255617,-584.83,0.00023614,2]
[376194575,1753888255626,-584.83,0.00023888,2]
[376194577,1753888255636,-584.83,0.00024162,2]
[376194579,1753888255646,-151.0,0.0002475,2]
[376194581,1753888255655,-151.0,0.0002485,2]
[376194582,1753888255663,-151.0,0.0002495,2]
[376194583,1753888255673,-18636.20994369,0.00025,14]
[376194584,1753888255685,-2752.34141463,0.00025,14]
[376194585,1753888255697,-3462.78316953,0.00025,14]
[376194586,1753888255709,-20328.21505061,0.00025,14]
[376194587,1753888255719,-1064.39793505,0.00025,2]
[376194588,1753888255728,-16010.69889671,0.00025,2]
[376194589,1753888255738,-2620.8833896,0.00025,2]
[376194590,1753888255753,-207.8303851,0.00025,2]
[376194591,1753888255764,-10364.0,0.00025,2]
[376194592,1753888255776,-358.77514914,0.00025,2]
[376194593,1753888255872,-500.0,0.00025,2]
[376194594,1753888255886,-38629.39693804,0.00025,2]
[376194595,1753888255895,-1013.7717161,0.00025,10]
[376194596,1753888255906,-430.63,0.00025,5]
[376194597,1753888255915,-151.0,0.00025,7]
[376194598,1753888255924,-151.0,0.00025,7]
[376194599,1753888255934,-151.0,0.00025,7]
[376194600,1753888255943,-151.0,0.00025,7]
[376194601,1753888255952,-291.806618,0.00025,7]
[376194602,1753888255962,-152.118757,0.00025,7]
[376194603,1753888255971,-199.866233,0.00025,7]
[376194604,1753888255980,-199.866233,0.00025,7]
[376194605,1753888255989,-151.0,0.00025,7]
[376194606,1753888256002,-151.0,0.00025,7]
[376194607,1753888256011,-452.868494,0.00025,7]
[376194608,1753888256020,-452.868494,0.00025,7]
[376194609,1753888256029,-452.868494,0.00025,7]
[376194610,1753888256038,-452.868504,0.00025,7]
[376194611,1753888256047,-1982.659172,0.00025,5]
[376194612,1753888256057,-160.0,0.00025,3]
[376194613,1753888256066,-190.0,0.00025,2]
[376194614,1753888256075,-4532.63957253,0.00025,3]
[376194615,1753888256084,-214.87999826,0.00025,3]
[376194616,1753888256094,-160.0,0.00025,3]
[376194617,1753888256103,-160.0,0.00025,7]
[376194618,1753888256113,-1200.0,0.00025005,2]
[376194619,1753888256122,-500.0,0.00025009,2]
[376194620,1753888256131,-1200.0,0.00025013,2]
[376194621,1753888256140,-400.0,0.00025021,2]
[376194622,1753888256149,-1200.0,0.00025028,2]
[376194623,1753888256158,-1000.0,0.00025031,2]
[376194624,1753888256168,-250.0,0.00025049,2]
[376194625,1753888256177,-1000.0,0.0002505,2]
[376194626,1753888256188,-151.0,0.0002505,2]
[376194627,1753888256198,-151.0,0.0002505,2]
[376194628,1753888256207,-151.0,0.0002505,2]
[376194629,1753888256216,-381.0,0.00025053,2]
[376194630,1753888256226,-474.32,0.00025054,4]
[376194631,1753888256236,-3228.5,0.00025054,2]
[376194632,1753888256248,-460.0,0.00025054,2]
[376194633,1753888256258,-202.18548594,0.00025074,12]
[376194634,1753888256268,-2347.7,0.00025092,7]
[376194635,1753888256279,-1000.0,0.00025093,2]
[376194636,1753888256291,-1200.0,0.00025097,2]
[376194637,1753888256300,-600.0,0.00025103,2]
[376194638,1753888256310,-381.0,0.00025105,2]
[376194639,1753888256320,-1200.0,0.00025114,2]
[376194640,1753888256331,-685.45,0.00025117,2]
[376194641,1753888256342,-62.81790855,0.0002515,2]
[376194642,1753888256355,-88.18209145,0.0002515,2]
[376194643,1753888256368,-151.0,0.0002515,2]
[376194644,1753888256377,-151.0,0.0002515,2]
[376194645,1753888256387,-860.0,0.00025165,2]
[376194646,1753888256396,-600.0,0.0002517,2]
[376194647,1753888256406,-135.64780631,0.00025176,2]
[376194740,1753888755913,163.559441,0.00013699,2]
[376194757,1753889161404,-165.40798938,0.000189,2]
[376194768,1753889315057,678.57564038,0.0001,7]
[376194790,1753889386785,-195.382984,0.00019178,2]
[376194791,1753889386809,-300.0,0.00019774,2]
[376194792,1753889386829,-460.0,0.00019775,2]
[376194793,1753889386851,-460.0,0.00019775,2]
[376194794,1753889386872,-460.0,0.00019775,2]
[376194795,1753889386895,-460.0,0.00019775,2]
[376194796,1753889386920,-861.87,0.00019775,2]
[376194797,1753889386944,-460.0,0.00019775,2]
[376194798,1753889386966,-460.0,0.00019775,2]
[376194799,1753889386989,-732.57,0.00019775,2]
[376194800,1753889387011,-460.0,0.00019775,2]
[376194801,1753889387033,-460.0,0.00019775,2]
[376194802,1753889387054,-460.0,0.00019775,2]
[376194803,1753889387079,-460.0,0.00019775,2]
[376194804,1753889387101,-460.0,0.00019775,2]
[376194805,1753889387121,-460.0,0.00019776,2]
[376194806,1753889387142,-460.0,0.00019776,2]
[376194807,1753889387162,-468.27143303,0.00019776,2]
[376194808,1753889387183,-460.0,0.00019776,2]
[376194809,1753889387202,-156.84395036,0.00019776,2]
[376194810,1753889387223,-264.99684139,0.00019776,2]
[376194811,1753889387245,-605.59944999,0.00019776,2]
[376194812,1753889387266,-460.0,0.00019776,2]
[376194813,1753889387288,-460.0,0.00019776,2]
[376194814,1753889387310,-460.0,0.00019776,2]
[376194815,1753889387333,-460.0,0.00019776,2]
[376194816,1753889387354,-460.0,0.00019776,2]
[376194817,1753889387379,-460.0,0.00019776,2]
[376194818,1753889387404,-460.0,0.00019776,2]
[376194819,1753889387430,-460.0,0.00019776,2]
[376194820,1753889387453,-460.0,0.00019776,2]
[376194821,1753889387476,-460.0,0.00019776,2]
[376194822,1753889387510,-460.0,0.00019776,2]
[376194823,1753889387532,-460.0,0.00019776,2]
[376194824,1753889387554,-460.0,0.00019776,2]
[376194825,1753889387576,-460.0,0.00019776,2]
[376194826,1753889387598,-460.0,0.00019776,2]
[376194827,1753889387624,-460.0,0.00019776,2]
[376194828,1753889387646,-460.0,0.00019776,2]
[376194829,1753889387668,-460.0,0.00019776,2]
[376194830,1753889387690,-460.0,0.00019776,2]
[376194831,1753889387714,-488.26,0.00019776,2]
[376194832,1753889387738,-460.0,0.00019776,2]
[376194833,1753889387759,-583.74,0.00019776,2]
[376194834,1753889387781,-460.0,0.00019776,2]
[376194835,1753889387804,-460.0,0.00019776,2]
[376194836,1753889387985,-460.0,0.00019776,2]
[376194837,1753889388010,-460.0,0.00019776,2]
[376194838,1753889388036,-478.67,0.00019776,2]
[376194839,1753889388061,-460.0,0.00019776,2]
[376194840,1753889388083,-460.0,0.00019776,2]
[376194841,1753889388106,-460.0,0.00019776,2]
[376194842,1753889388127,-460.0,0.00019776,2]
[376194843,1753889388150,-460.0,0.00019776,2]
[376194844,1753889388174,-1692.58,0.00019776,2]
[376194845,1753889388197,-460.0,0.00019776,2]
[376194846,1753889388220,-460.0,0.00019776,2]
[376194847,1753889388242,-460.0,0.00019776,2]
[376194848,1753889388263,-460.0,0.00019776,2]
[376194849,1753889388285,-460.0,0.00019776,2]
[376194850,1753889388307,-460.0,0.00019776,2]
[376194851,1753889388329,-460.0,0.00019776,2]
[376194852,1753889388351,-460.0,0.00019776,2]
[376194853,1753889388375,-546.93,0.00019776,2]
[376194854,1753889388396,-460.0,0.00019776,2]
[376194855,1753889388417,-493.7452401,0.00019776,2]
[376194856,1753889388441,-302.85,0.00019776,2]
[376194857,1753889388464,-460.0,0.00019776,2]
[376194858,1753889388486,-460.0,0.00019776,2]
[376194859,1753889388508,-460.0,0.00019776,2]
[376194860,1753889388531,-460.0,0.00019776,2]
[376194861,1753889388555,-460.0,0.00019776,2]
[376194862,1753889388579,-460.0,0.00019776,2]
[376194863,1753889388602,-460.0,0.00019776,2]
[376194864,1753889388627,-460.0,0.00019776,2]
[376194865,1753889388650,-522.14102429,0.00019776,2]
[376194866,1753889388673,-460.0,0.00019776,2]
[376194867,1753889388696,-460.0,0.00019777,2]
[376194868,1753889388719,-460.0,0.00019777,2]
[376194869,1753889388741,-460.0,0.00019777,2]
[376194870,1753889388762,-460.0,0.00019777,2]
[376194871,1753889388784,-460.0,0.00019777,2]
[376194872,1753889388806,-460.0,0.00019777,2]
[376194873,1753889388832,-460.0,0.00019777,2]
[376194874,1753889388857,-25.54907684,0.00019777,2]
[376194925,1753889432944,-460.0,0.00019775,2]
[376194928,1753889432953,-460.0,0.00019775,2]
[376194930,1753889432965,-460.0,0.00019776,2]
[376194932,1753889432974,-460.0,0.00019776,2]
[376194934,1753889432983,-524.14,0.00019776,2]
[376194936,1753889432992,-460.0,0.00019776,2]
[376194938,1753889433001,-460.0,0.00019776,2]
[376194940,1753889433011,-467.92,0.00019776,2]
[376194942,1753889433021,-460.0,0.00019776,2]
[376194944,1753889433031,-434.45092316,0.00019777,2]
[376194946,1753889433041,-460.0,0.00019777,2]
[376194948,1753889433050,-460.0,0.00019777,2]
[376194950,1753889433059,-460.0,0.00019777,2]
[376194952,1753889433069,-460.0,0.00019777,2]
[376194954,1753889433079,-460.0,0.00019777,2]
[376194956,1753889433088,-460.0,0.00019777,2]
[376194958,1753889433098,-460.0,0.00019777,2]
[376194960,1753889433108,-238.26937307,0.00019777,2]
[376194962,1753889433118,-373.6856005,0.00019777,2]
[376194964,1753889433127,-460.0,0.00019777,2]
[376194966,1753889433137,-460.0,0.00019778,2]
[376194968,1753889433146,-460.0,0.00019778,2]
[376194970,1753889433155,-460.0,0.00019778,2]
[376194972,1753889433165,-169.31220568,0.0001995,2]
[376194974,1753889433174,-198.55078674,0.0002,2]
[376194976,1753889433184,-432.77410779,0.0002,20]
[376194977,1753889433194,-460.0,0.00020049,2]
[376194978,1753889433203,-861.87,0.00020049,2]
[376194979,1753889433214,-460.0,0.00020049,2]
[376194980,1753889433223,-460.0,0.00020049,2]
[376194981,1753889433233,-732.57,0.00020049,2]
[376194982,1753889433242,-460.0,0.00020049,2]
[376194983,1753889433252,-460.0,0.00020049,2]
[376194984,1753889433262,-460.0,0.00020049,2]
[376194985,1753889433271,-460.0,0.00020049,2]
[376194986,1753889433280,-460.0,0.00020049,2]
[376194987,1753889433290,-460.0,0.00020049,2]
[376194988,1753889433299,-262.96198933,0.0002005,2]
[376194989,1753889433309,-460.0,0.0002005,2]
[376194990,1753889433318,-460.0,0.0002005,2]
[376194991,1753889433327,-527.88,0.0002005,2]
[376194992,1753889433336,-460.0,0.0002005,2]
[376194993,1753889433346,-460.0,0.0002005,2]
[376194994,1753889433355,-460.0,0.0002005,2]
[376194995,1753889433365,-460.0,0.0002005,2]
[376194996,1753889433374,-460.0,0.0002005,2]
[376194997,1753889433383,-460.0,0.0002005,2]
[376194998,1753889433394,-460.0,0.0002005,2]
[376194999,1753889433403,-460.0,0.0002005,2]
[376195000,1753889433413,-460.0,0.0002005,2]
[376195001,1753889433422,-460.0,0.0002005,2]
[376195002,1753889433432,-460.0,0.0002005,2]
[376195003,1753889433441,-460.0,0.0002005,2]
[376195004,1753889433451,-460.0,0.0002005,2]
[376195005,1753889433463,-460.0,0.0002005,2]
[376195006,1753889433472,-460.0,0.0002005,2]
[376195007,1753889433482,-460.0,0.0002005,2]
[376195008,1753889433491,-169.83,0.0002005,2]
[376195009,1753889433501,-460.0,0.0002005,2]
[376195010,1753889433511,-460.0,0.0002005,2]
[376195011,1753889433520,-460.0,0.0002005,2]
[376195012,1753889433530,-460.0,0.0002005,2]
[376195014,1753889433540,-460.0,0.0002005,2]
[376195015,1753889433550,-460.0,0.0002005,2]
[376195016,1753889433560,-460.0,0.0002005,2]
[376195018,1753889433570,-460.0,0.0002005,2]
[376195020,1753889433579,-460.0,0.0002005,2]
[376195022,1753889433590,-460.0,0.0002005,2]
[376195024,1753889433600,-460.0,0.0002005,2]
[376195026,1753889433610,-460.0,0.0002005,2]
[376195028,1753889433619,-460.0,0.0002005,2]
[376195030,1753889433630,-460.0,0.0002005,2]
[376195032,1753889433644,-460.0,0.0002005,2]
[376195034,1753889433654,-481.14,0.0002005,2]
[376195036,1753889433663,-460.0,0.0002005,2]
[376195038,1753889433673,-460.0,0.0002005,2]
[376195040,1753889433683,-460.0,0.0002005,2]
[376195042,1753889433692,-460.0,0.0002005,2]
[376195044,1753889433702,-460.0,0.0002005,2]
[376195045,1753889433712,-524.14,0.0002005,2]
[376195047,1753889433722,-460.0,0.0002005,2]
[376195049,1753889433731,-460.0,0.0002005,2]
[376195051,1753889433740,-467.92,0.0002005,2]
[376195053,1753889433750,-461.32711952,0.0002005,2]
[376195055,1753889433760,-460.0,0.00020051,2]
[376195057,1753889433769,-592.53480615,0.00020051,2]
[376195059,1753889433779,-460.0,0.00020051,2]
[376195061,1753889433789,-460.0,0.00020051,2]
[376195063,1753889433799,-460.0,0.00020051,2]
[376195064,1753889433808,-460.0,0.00020051,2]
[376195065,1753889433817,-460.0,0.00020051,2]
[376195067,1753889433826,-166.1,0.00020051,2]
[376195069,1753889433836,-155.129202,0.00020052,2]
[376195071,1753889433846,-460.0,0.00020052,2]
[376195073,1753889433855,-1423.07,0.00020052,2]
[376195075,1753889433864,-460.0,0.00020052,2]
[376195077,1753889433874,-460.0,0.00020052,2]
[376195079,1753889433884,-200.0,0.00020171,15]
[376195081,1753889433894,-200.0,0.00020171,15]
[376195083,1753889433904,-200.0,0.00020171,15]
[376195085,1753889433912,-200.0,0.00020171,15]
[376195087,1753889433922,-200.0,0.00020171,15]
[376195089,1753889433931,-200.0,0.00020171,15]
[376195091,1753889433941,-200.0,0.00020171,15]